fUST/lending_fUST_20240621
["ID","MTS","AMOUNT","RATE_DAILY","PERIOD"]
[329994575,1718907040381,-506.05277429,0.00054794,120]
[329994576,1718907040390,-256.58369329,0.00054794,120]
[329994578,1718907040401,-500.0,0.00054794,120]
[329994580,1718907040410,-500.0,0.00054794,120]
[329994581,1718907040420,-500.0,0.00054794,120]
[329994582,1718907040429,-500.0,0.00054794,120]
[329994583,1718907040438,-500.0,0.00054794,120]
[329994584,1718907040448,-500.0,0.00054794,120]
[329994585,1718907040457,-250.0,0.00054794,120]
[329994586,1718907040466,-500.0,0.00054794,120]
[329994587,1718907040476,-443.29839865,0.00054794,120]
[329994588,1718907040485,-500.0,0.00054794,120]
[329994589,1718907040494,-603.71067152,0.00054794,120]
[329994590,1718907040503,-500.0,0.00054794,120]
[329994591,1718907040512,-500.0,0.00054794,120]
[329994592,1718907040521,-501.15039361,0.00054794,120]
[329994593,1718907040531,-500.0,0.00054794,120]
[329994594,1718907040540,-500.0,0.00054794,120]
[329994595,1718907040549,-500.89607066,0.00054794,120]
[329994596,1718907040558,-508.05514053,0.00054794,120]
[329994597,1718907040567,-502.35212257,0.00054794,120]
[329994598,1718907040576,-240.28167332,0.00054794,120]
[329994599,1718907040585,-500.5818254,0.00054794,120]
[329994600,1718907040595,-520.64084309,0.00054794,120]
[329994601,1718907040604,-500.0,0.00054794,120]
[329994602,1718907040613,-225.54608819,0.00054794,120]
[329994604,1718907040623,-500.0,0.00054794,120]
[329994606,1718907040632,-500.0,0.00054794,120]
[329994608,1718907040641,-502.5047684,0.00054794,120]
[329994609,1718907040654,-500.0,0.00054794,120]
[329994611,1718907040664,-500.0,0.00054794,120]
[329994613,1718907040673,-500.0,0.00054794,120]
[329994615,1718907040682,-500.0,0.00054794,120]
[329994616,1718907040695,-508.37814768,0.00054794,120]
[329994618,1718907040705,-500.0,0.00054794,120]
[329994619,1718907040714,-503.09269873,0.00054794,120]
[329994620,1718907040723,-500.0,0.00054794,120]
[329994621,1718907040734,-500.0,0.00054794,120]
[329994622,1718907040744,-500.0,0.00054794,120]
[329994623,1718907040753,-521.6391718,0.00054794,120]
[329994625,1718907040763,-503.07032068,0.00054794,120]
[329994627,1718907040772,-500.0,0.00054794,120]
[329994629,1718907040782,-500.0,0.00054794,120]
[329994630,1718907040792,-590.74107221,0.00054794,120]
[329994632,1718907040802,-500.0,0.00054794,120]
[329994634,1718907040812,-500.0,0.00054794,120]
[329994635,1718907040822,-500.0,0.00054794,120]
[329994636,1718907040831,-505.57192816,0.00054794,120]
[329994637,1718907040841,-485.10268015,0.00054794,120]
[329994638,1718907040850,-501.87106535,0.00054794,120]
[329994639,1718907040860,-500.0,0.00054794,120]
[329994640,1718907040869,-503.61509051,0.00054794,15]
[329994641,1718907040879,-525.29369667,0.00054794,120]
[329994642,1718907040888,-500.0,0.00054794,120]
[329994643,1718907040899,-554.15521655,0.00054794,120]
[329994644,1718907040918,-500.0,0.00054794,120]
[329994645,1718907040928,-223.23841115,0.00054794,120]
[329994646,1718907040937,-500.0,0.00054794,120]
[329994647,1718907041020,-500.0,0.00054794,120]
[329994648,1718907041031,-500.0,0.00054794,120]
[329994649,1718907041040,-500.0,0.00054794,30]
[329994650,1718907041050,-501.72029078,0.00054794,120]
[329994651,1718907041059,-500.0,0.00054794,2]
[329994652,1718907041068,-500.0,0.00054794,120]
[329994653,1718907041078,-500.0,0.00054794,120]
[329994654,1718907041087,-504.12922519,0.00054794,120]
[329994656,1718907041097,-343.78626482,0.00054794,120]
[329994658,1718907041106,-500.0,0.00054794,2]
[329994660,1718907041115,-500.0,0.00054794,2]
[329994662,1718907041125,-500.0,0.00054794,2]
[329994664,1718907041134,-500.0,0.00054794,2]
[329994666,1718907041144,-500.0,0.00054794,2]
[329994668,1718907041158,-500.0,0.00054794,120]
[329994670,1718907041170,-499.0,0.00054794,2]
[329994671,1718907041178,-500.0,0.00054794,120]
[329994672,1718907041187,-500.0,0.00054794,120]
[329994673,1718907041199,-826.52,0.00054794,120]
[329994674,1718907041208,-442.04623323,0.00054794,120]
[329994675,1718907041218,-565.38538265,0.00054794,7]
[329994676,1718907041227,-500.0,0.00054794,120]
[329994677,1718907041236,-348.57557408,0.00054794,120]
[329994678,1718907041245,-500.0,0.00054794,120]
[329994679,1718907041254,-500.0,0.00054794,120]
[329994680,1718907041264,-500.07468102,0.00054794,120]
[329994681,1718907041273,-500.0,0.00054794,120]
[329994682,1718907041282,-500.0,0.00054794,120]
[329994683,1718907041291,-500.0,0.00054794,120]
[329994684,1718907041302,-500.0,0.00054794,120]
[329994685,1718907041312,-500.0,0.00054794,120]
[329994686,1718907041323,-432.94595786,0.00054794,120]
[329994687,1718907041332,-500.0,0.00054794,120]
[329994688,1718907041342,-511.82330992,0.00054794,120]
[329994689,1718907041351,-500.0,0.00054794,120]
[329994690,1718907041361,-500.0,0.00054794,120]
[329994691,1718907041371,-500.0,0.00054794,120]
[329994692,1718907041380,-500.0,0.00054794,120]
[329994693,1718907041389,-500.0,0.00054794,120]
[329994694,1718907041401,-538.86,0.00054794,120]
[329994695,1718907041411,-500.0,0.00054794,120]
[329994696,1718907041420,-500.0,0.00054794,120]
[329994697,1718907041430,-500.0,0.00054794,120]
[329994698,1718907041439,-500.0,0.00054794,120]
[329994699,1718907041448,-500.0,0.00054794,120]
[329994700,1718907041457,-500.0,0.00054794,120]
[329994701,1718907041467,-500.0,0.00054794,120]
[329994702,1718907041476,-500.83141582,0.00054794,120]
[329994703,1718907041485,-500.0,0.00054794,120]
[329994704,1718907041494,-180.76450484,0.00054794,120]
[329994705,1718907041504,-500.0,0.00054794,120]
[329994706,1718907041519,-500.0,0.00054794,120]
[329994707,1718907041527,-1000.0,0.00054794,120]
[329994708,1718907041536,-500.0,0.00054794,120]
[329994709,1718907041545,-500.0,0.00054794,120]
[329994710,1718907041554,-500.0,0.00054794,120]
[329994711,1718907041563,-500.0,0.00054794,120]
[329994712,1718907041572,-406.43010924,0.00054794,120]
[329994713,1718907041581,-500.0,0.00054794,120]
[329994714,1718907041589,-500.0,0.00054794,120]
[329994715,1718907041598,-500.0,0.00054794,120]
[329994716,1718907041607,-500.0,0.00054794,120]
[329994717,1718907041616,-500.0,0.00054794,120]
[329994718,1718907041625,-500.0,0.00054794,120]
[329994719,1718907041634,-500.0,0.00054794,120]
[329994720,1718907041643,-500.0,0.00054794,120]
[329994721,1718907041653,-500.0,0.00054794,120]
[329994722,1718907041662,-502.99877173,0.00054794,14]
[329994723,1718907041671,-500.0,0.00054794,30]
[329994724,1718907041680,-500.0,0.00054794,120]
[329994725,1718907041689,-500.0,0.00054794,120]
[329994726,1718907041698,-500.0,0.00054794,120]
[329994727,1718907041707,-500.0,0.00054794,120]
[329994728,1718907041717,-500.0,0.00054794,120]
[329994729,1718907041727,-500.0,0.00054794,120]
[329994730,1718907041738,-500.0,0.00054794,120]
[329994731,1718907041747,-500.0,0.00054794,120]
[329994732,1718907041758,-500.0,0.00054794,120]
[329994733,1718907041768,-500.0,0.00054794,120]
[329994734,1718907041778,-455.44182653,0.00054794,120]
[329994735,1718907041787,-649.88312516,0.00054794,120]
[329994736,1718907041799,-500.0,0.00054794,120]
[329994737,1718907041809,-500.0,0.00054794,120]
[329994738,1718907041819,-500.0,0.00054794,120]
[329994739,1718907041828,-500.0,0.00054794,120]
[329994740,1718907041837,-519.70721714,0.00054794,120]
[329994741,1718907041847,-500.0,0.00054794,120]
[329994742,1718907041856,-500.0,0.00054794,120]
[329994743,1718907041865,-1000.0,0.00054794,120]
[329994744,1718907041875,-500.0,0.00054794,120]
[329994745,1718907041884,-540.1574138,0.00054794,120]
[329994746,1718907041893,-500.0,0.00054794,120]
[329994747,1718907041909,-500.0,0.00054794,120]
[329994748,1718907041918,-500.0,0.00054794,120]
[329994749,1718907041927,-2062.89,0.00054794,120]
[329994750,1718907041936,-210.03388937,0.00054794,120]
[329994751,1718907041947,-500.0,0.00054794,120]
[329994752,1718907041956,-500.0,0.00054794,120]
[329994753,1718907041970,-500.0,0.00054794,120]
[329994754,1718907041981,-500.0,0.00054794,120]
[329994755,1718907041991,-750.16,0.00054794,120]
[329994756,1718907042002,-500.0,0.00054794,120]
[329994757,1718907042012,-502.33087165,0.00054794,120]
[329994758,1718907042021,-502.66829382,0.00054794,120]
[329994759,1718907042030,-500.0,0.00054794,120]
[329994760,1718907042039,-200.0,0.00054794,7]
[329994761,1718907042049,-500.0,0.00054794,120]
[329994762,1718907042059,-600.0,0.00054794,120]
[329994763,1718907042068,-500.0,0.00054794,120]
[329994764,1718907042078,-500.0,0.00054794,120]
[329994765,1718907042088,-500.0,0.00054794,120]
[329994766,1718907042097,-500.0,0.00054794,120]
[329994767,1718907042107,-500.0,0.00054794,120]
[329994768,1718907042116,-500.0,0.00054794,120]
[329994769,1718907042128,-500.0,0.00054794,120]
[329994770,1718907042137,-500.0,0.00054794,120]
[329994771,1718907042149,-500.0,0.00054794,120]
[329994772,1718907042158,-532.60459562,0.00054794,120]
[329994773,1718907042168,-500.0,0.00054794,120]
[329994774,1718907042177,-530.11055638,0.00054794,120]
[329994775,1718907042186,-773.24362617,0.00054794,120]
[329994776,1718907042196,-500.0,0.00054794,120]
[329994777,1718907042206,-500.0,0.00054794,120]
[329994778,1718907042216,-500.0,0.00054794,120]
[329994779,1718907042226,-500.0,0.00054794,120]
[329994780,1718907042236,-504.49477912,0.00054794,120]
[329994781,1718907042246,-500.0,0.00054794,120]
[329994782,1718907042256,-500.0,0.00054794,2]
[329994783,1718907042265,-507.75613025,0.00054794,120]
[329994784,1718907042275,-500.0,0.00054794,120]
[329994785,1718907042286,-500.0,0.00054794,20]
[329994786,1718907042296,-502.42607414,0.00054794,120]
[329994787,1718907042305,-500.0,0.00054794,120]
[329994788,1718907042315,-500.0,0.00054794,120]
[329994789,1718907042324,-500.0,0.00054794,120]
[329994790,1718907042334,-500.0,0.00054794,120]
[329994791,1718907042343,-500.0,0.00054794,120]
[329994792,1718907042352,-500.0,0.00054794,120]
[329994793,1718907042362,-501.77279686,0.00054794,120]
[329994794,1718907042371,-500.0,0.00054794,120]
[329994795,1718907042382,-500.0,0.00054794,120]
[329994796,1718907042391,-500.0,0.00054794,120]
[329994797,1718907042402,-609.77,0.00054794,2]
[329994798,1718907042411,-500.0,0.00054794,120]
[329994799,1718907042421,-503.9108137,0.00054794,120]
[329994800,1718907042431,-500.0,0.00054794,120]
[329994801,1718907042440,-500.0,0.00054794,120]
[329994802,1718907042449,-500.0,0.00054794,120]
[329994803,1718907042459,-500.0,0.00054794,120]
[329994804,1718907042468,-500.0,0.00054794,120]
[329994805,1718907042478,-500.0,0.00054794,120]
[329994806,1718907042488,-504.84498514,0.00054794,120]
[329994807,1718907042497,-507.54754434,0.00054794,120]
[329994808,1718907042507,-500.0,0.00054794,120]
[329994809,1718907042516,-500.0,0.00054794,120]
[329994810,1718907042526,-500.0,0.00054794,120]
[329994811,1718907042535,-500.0,0.00054794,120]
[329994812,1718907042545,-500.0,0.00054794,120]
[329994813,1718907042555,-500.0,0.00054794,120]
[329994814,1718907042565,-500.0,0.00054794,120]
[329994815,1718907042648,-500.0,0.00054794,120]
[329994816,1718907042658,-615.13910261,0.00054794,120]
[329994817,1718907042667,-500.0,0.00054794,120]
[329994818,1718907042677,-500.0,0.00054794,120]
[329994819,1718907042686,-500.0,0.00054794,120]
[329994820,1718907042696,-500.0,0.00054794,120]
[329994821,1718907042705,-224.80720622,0.00054794,120]
[329994822,1718907042714,-500.0,0.00054794,120]
[329994823,1718907042724,-500.0,0.00054794,120]
[329994824,1718907042733,-500.0,0.00054794,120]
[329994825,1718907042743,-502.0830931,0.00054794,120]
[329994826,1718907042752,-505.82,0.00054794,120]
[329994827,1718907042762,-500.0,0.00054794,120]
[329994828,1718907042771,-500.0,0.00054794,120]
[329994829,1718907042781,-500.0,0.00054794,120]
[329994830,1718907042790,-507.87980576,0.00054794,120]
[329994831,1718907042800,-500.0,0.00054794,120]
[329994832,1718907042809,-500.0,0.00054794,120]
[329994833,1718907042819,-500.0,0.00054794,120]
[329994834,1718907042832,-500.0,0.00054794,120]
[329994835,1718907042841,-1691.82,0.00054794,120]
[329994836,1718907042850,-500.0,0.00054794,120]
[329994837,1718907042860,-500.0,0.00054794,120]
[329994838,1718907042869,-500.0,0.00054794,120]
[329994839,1718907042878,-500.0,0.00054794,120]
[329994840,1718907042888,-500.0,0.00054794,120]
[329994841,1718907042898,-500.0,0.00054794,120]
[329994842,1718907042908,-500.0,0.00054794,120]
[329994843,1718907042923,-500.0,0.00054794,120]
[329994844,1718907042932,-500.0,0.00054794,120]
[329994845,1718907042942,-500.0,0.00054794,120]
[329994847,1718907042953,-500.0,0.00054794,120]
[329994848,1718907042962,-500.0,0.00054794,120]
[329994849,1718907042972,-500.0,0.00054794,120]
[329994850,1718907042981,-500.0,0.00054794,120]
[329994851,1718907042991,-500.0,0.00054794,2]
[329994852,1718907043003,-500.0,0.00054794,120]
[329994853,1718907043012,-500.0,0.00054794,120]
[329994854,1718907043023,-500.0,0.00054794,120]
[329994855,1718907043032,-3101.9,0.00054794,60]
[329994856,1718907043042,-500.0,0.00054794,120]
[329994857,1718907043052,-516.92,0.00054794,120]
[329994858,1718907043062,-503.94428105,0.00054794,120]
[329994859,1718907043071,-298.37460638,0.00054794,120]
[329994860,1718907043081,-500.0,0.00054794,120]
[329994861,1718907043091,-500.0,0.00054794,120]
[329994862,1718907043101,-500.0,0.00054794,120]
[329994863,1718907043110,-500.0,0.00054794,120]
[329994864,1718907043120,-500.0,0.00054794,120]
[329994865,1718907043129,-500.0,0.00054794,120]
[329994866,1718907043139,-500.0,0.00054794,120]
[329994867,1718907043151,-2662.65,0.00054794,120]
[329994868,1718907043160,-500.0,0.00054794,120]
[329994869,1718907043170,-500.0,0.00054794,120]
[329994870,1718907043180,-500.0,0.00054794,120]
[329994871,1718907043190,-524.76,0.00054794,120]
[329994872,1718907043199,-500.0,0.00054794,120]
[329994873,1718907043208,-501.2803781,0.00054794,120]
[329994874,1718907043218,-500.0,0.00054794,2]
[329994875,1718907043228,-500.0,0.00054794,120]
[329994876,1718907043238,-500.0,0.00054794,120]
[329994877,1718907043248,-500.0,0.00054794,120]
[329994878,1718907043258,-500.0,0.00054794,120]
[329994880,1718907043268,-500.0,0.00054794,120]
[329994883,1718907043277,-643.84,0.00054794,120]
[329994886,1718907043286,-507.42764687,0.00054794,120]
[329994889,1718907043296,-500.0,0.00054794,120]
[329994892,1718907043305,-500.0,0.00054794,120]
[329994894,1718907043315,-500.0,0.00054794,120]
[329994897,1718907043326,-286.15250192,0.00054794,120]
[329994899,1718907043335,-500.0,0.00054794,120]
[329994901,1718907043344,-500.0,0.00054794,120]
[329994903,1718907043353,-513.43454026,0.00054794,120]
[329994905,1718907043363,-500.0,0.00054794,120]
[329994907,1718907043373,-2559.98,0.00054794,120]
[329994908,1718907043382,-160.82707183,0.00054794,120]
[329994910,1718907043391,-507.39541035,0.00054794,120]
[329994911,1718907043402,-500.0,0.00054794,120]
[329994912,1718907043412,-500.0,0.00054794,120]
[329994913,1718907043421,-500.0,0.00054794,120]
[329994914,1718907043430,-500.0,0.00054794,120]
[329994915,1718907043441,-500.0,0.00054794,120]
[329994916,1718907043450,-500.0,0.00054794,120]
[329994917,1718907043460,-500.0,0.00054794,120]
[329994918,1718907043469,-500.0,0.00054794,120]
[329994919,1718907043479,-826.16,0.00054794,120]
[329994920,1718907043489,-5871.63,0.00054794,120]
[329994921,1718907043498,-551.02530116,0.00054794,120]
[329994922,1718907043507,-508.20854798,0.00054794,120]
[329994923,1718907043516,-500.0,0.00054794,120]
[329994924,1718907043526,-500.0,0.00054794,120]
[329994925,1718907043535,-500.0,0.00054794,120]
[329994926,1718907043546,-510.40620341,0.00054794,120]
[329994927,1718907043555,-501.55391926,0.00054794,120]
[329994928,1718907043564,-6888.11,0.00054794,120]
[329994929,1718907043574,-4114.48,0.00054794,120]
[329994930,1718907043584,-500.0,0.00054794,120]
[329994931,1718907043595,-500.0,0.00054794,120]
[329994932,1718907043604,-500.0,0.00054794,120]
[329994933,1718907043614,-1585.31,0.00054794,120]
[329994934,1718907043623,-500.0,0.00054794,120]
[329994935,1718907043633,-500.0,0.00054794,120]
[329994936,1718907043643,-500.0,0.00054794,120]
[329994937,1718907043654,-500.0,0.00054794,120]
[329994938,1718907043663,-500.0,0.00054794,120]
[329994939,1718907043672,-500.0,0.00054794,20]
[329994940,1718907043682,-500.0,0.00054794,120]
[329994941,1718907043692,-511.75677093,0.00054794,120]
[329994942,1718907043701,-500.0,0.00054794,120]
[329994943,1718907043710,-525.43255345,0.00054794,120]
[329994944,1718907043720,-500.0,0.00054794,120]
[329994946,1718907043730,-500.0,0.00054794,120]
[329994948,1718907043739,-500.0,0.00054794,120]
[329994949,1718907043748,-500.0,0.00054794,120]
[329994951,1718907043759,-500.0,0.00054794,120]
[329994953,1718907043768,-1000.0,0.00054794,120]
[329994955,1718907043778,-500.0,0.00054794,120]
[329994958,1718907043788,-500.0,0.00054794,120]
[329994960,1718907043797,-279.23182694,0.00054794,120]
[329994962,1718907043806,-500.0,0.00054794,120]
[329994964,1718907043815,-500.93811633,0.00054794,120]
[329994966,1718907043824,-500.0,0.00054794,120]
[329994967,1718907043834,-500.0,0.00054794,120]
[329994968,1718907043844,-500.0,0.00054794,120]
[329994969,1718907043854,-3012.37,0.00054794,120]
[329994970,1718907043864,-500.0,0.00054794,120]
[329994971,1718907043873,-500.0,0.00054794,120]
[329994972,1718907043883,-500.0,0.00054794,120]
[329994973,1718907043894,-500.0,0.00054794,120]
[329994974,1718907043910,-500.0,0.00054794,120]
[329994975,1718907043919,-500.0,0.00054794,120]
[329994976,1718907043930,-500.0,0.00054794,120]
[329994977,1718907043940,-500.0,0.00054794,120]
[329994978,1718907043951,-500.0,0.00054794,120]
[329994979,1718907043960,-1268.23,0.00054794,120]
[329994980,1718907043970,-20572.35,0.00054794,120]
[329994981,1718907043981,-500.0,0.00054794,120]
[329994982,1718907043990,-500.0,0.00054794,120]
[329994983,1718907044001,-500.0,0.00054794,120]
[329994984,1718907044010,-518.24468426,0.00054794,120]
[329994985,1718907044019,-502.18234214,0.00054794,120]
[329994986,1718907044029,-500.0,0.00054794,120]
[329994987,1718907044039,-500.0,0.00054794,120]
[329994988,1718907044049,-500.0,0.00054794,120]
[329994989,1718907044058,-500.0,0.00054794,120]
[329994990,1718907044069,-410.4031196,0.00054794,120]
[329994991,1718907044079,-500.0,0.00054794,120]
[329994992,1718907044161,-500.0,0.00054794,120]
[329994994,1718907044171,-500.0,0.00054794,120]
[329994995,1718907044181,-500.0,0.00054794,120]
[329994996,1718907044190,-247.18293953,0.00054794,120]
[329994997,1718907044199,-501.68618541,0.00054794,120]
[329994998,1718907044209,-500.0,0.00054794,120]
[329994999,1718907044219,-500.0,0.00054794,120]
[329995000,1718907044228,-1774.47,0.00054794,21]
[329995001,1718907044237,-500.0,0.00054794,120]
[329995002,1718907044247,-500.0,0.00054794,120]
[329995003,1718907044257,-500.0,0.00054794,120]
[329995004,1718907044266,-500.0,0.00054794,120]
[329995005,1718907044276,-500.0,0.00054794,120]
[329995006,1718907044285,-500.71395643,0.00054794,120]
[329995007,1718907044295,-500.0,0.00054794,60]
[329995008,1718907044304,-500.0,0.00054794,120]
[329995009,1718907044314,-500.0,0.00054794,120]
[329995010,1718907044323,-500.0,0.00054794,120]
[329995011,1718907044333,-500.0,0.00054794,120]
[329995012,1718907044342,-447.34115879,0.00054794,120]
[329995013,1718907044352,-500.0,0.00054794,120]
[329995014,1718907044362,-3331.04,0.00054794,120]
[329995015,1718907044371,-500.0,0.00054794,120]
[329995016,1718907044380,-500.0,0.00054794,120]
[329995017,1718907044390,-500.0,0.00054794,120]
[329995018,1718907044401,-500.0,0.00054794,120]
[329995019,1718907044411,-500.0,0.00054794,120]
[329995020,1718907044420,-500.0,0.00054794,120]
[329995021,1718907044430,-500.0,0.00054794,120]
[329995022,1718907044439,-500.0,0.00054794,120]
[329995023,1718907044448,-500.0,0.00054794,120]
[329995024,1718907044458,-632.62735123,0.00054794,120]
[329995025,1718907044468,-504.28802421,0.00054794,120]
[329995026,1718907044478,-519.64839721,0.00054794,120]
[329995027,1718907044488,-500.98801376,0.00054794,120]
[329995028,1718907044497,-454.16313666,0.00054794,120]
[329995029,1718907044507,-500.0,0.00054794,120]
[329995030,1718907044518,-500.0,0.00054794,120]
[329995031,1718907044528,-505.1978789,0.00054794,120]
[329995032,1718907044538,-541.66,0.00054794,120]
[329995033,1718907044548,-541.66,0.00054794,120]
[329995034,1718907044559,-541.66,0.00054794,120]
[329995035,1718907044568,-541.66,0.00054794,120]
[329995036,1718907044578,-541.66,0.00054794,120]
[329995037,1718907044588,-541.66,0.00054794,120]
[329995038,1718907044598,-500.0,0.00054794,120]
[329995039,1718907044608,-500.0,0.00054794,120]
[329995040,1718907044617,-3317.56,0.00054794,120]
[329995041,1718907044627,-541.66,0.00054794,120]
[329995042,1718907044637,-500.0,0.00054794,120]
[329995043,1718907044647,-1980.1,0.00054794,120]
[329995044,1718907044657,-500.0,0.00054794,120]
[329995045,1718907044667,-500.0,0.00054794,120]
[329995046,1718907044676,-500.0,0.00054794,120]
[329995047,1718907044686,-500.0,0.00054794,120]
[329995048,1718907044697,-500.0,0.00054794,120]
[329995049,1718907044707,-500.0,0.00054794,120]
[329995050,1718907044721,-340.54528223,0.00054794,120]
[329995051,1718907044730,-500.0,0.00054794,120]
[329995052,1718907044739,-823.45,0.00054794,120]
[329995053,1718907044750,-506.39325656,0.00054794,120]
[329995054,1718907044761,-500.0,0.00054794,120]
[329995055,1718907044771,-502.33659038,0.00054794,120]
[329995056,1718907044780,-503.97337733,0.00054794,120]
[329995057,1718907044790,-500.0,0.00054794,120]
[329995058,1718907044799,-500.0,0.00054794,120]
[329995059,1718907044809,-2671.66,0.00054794,120]
[329995060,1718907044819,-500.0,0.00054794,120]
[329995061,1718907044828,-500.0,0.00054794,120]
[329995062,1718907044837,-500.0,0.00054794,120]
[329995063,1718907044847,-500.0,0.00054794,120]
[329995064,1718907044856,-501.47404528,0.00054794,120]
[329995065,1718907044866,-500.0,0.00054794,120]
[329995066,1718907044875,-500.0,0.00054794,120]
[329995067,1718907044885,-500.0,0.00054794,120]
[329995068,1718907044895,-500.0,0.00054794,120]
[329995069,1718907044907,-516.89371815,0.00054794,120]
[329995070,1718907044921,-500.0,0.00054794,120]
[329995071,1718907044931,-500.0,0.00054794,120]
[329995072,1718907044940,-500.0,0.00054794,120]
[329995073,1718907044950,-500.0,0.00054794,120]
[329995074,1718907044960,-561.51,0.00054794,120]
[329995075,1718907044970,-500.0,0.00054794,120]
[329995076,1718907044980,-500.0,0.00054794,120]
[329995077,1718907044991,-500.0,0.00054794,120]
[329995078,1718907045002,-500.0,0.00054794,120]
[329995079,1718907045012,-1624.59,0.00054794,120]
[329995080,1718907045021,-500.0,0.00054794,120]
[329995081,1718907045031,-2928.67,0.00054794,120]
[329995082,1718907045040,-2928.67,0.00054794,120]
[329995083,1718907045050,-2928.67,0.00054794,120]
[329995084,1718907045059,-2928.67,0.00054794,120]
[329995085,1718907045068,-2928.67,0.00054794,120]
[329995086,1718907045078,-2928.67,0.00054794,120]
[329995087,1718907045088,-2928.67,0.00054794,120]
[329995088,1718907045097,-2928.67,0.00054794,120]
[329995089,1718907045107,-2928.67,0.00054794,120]
[329995090,1718907045116,-631.95,0.00054794,120]
[329995091,1718907045126,-500.0,0.00054794,120]
[329995092,1718907045135,-500.0,0.00054794,90]
[329995093,1718907045145,-500.0,0.00054794,120]
[329995094,1718907045155,-239.0386631,0.00054794,120]
[329995095,1718907045165,-500.0,0.00054794,120]
[329995096,1718907045174,-508.73645181,0.00054794,120]
[329995097,1718907045184,-502.7960431,0.00054794,120]
[329995098,1718907045193,-500.0,0.00054794,120]
[329995099,1718907045203,-272.81649475,0.00054794,120]
[329995100,1718907045213,-587.38121168,0.00054794,120]
[329995101,1718907045223,-500.0,0.00054794,120]
[329995102,1718907045232,-505.59710494,0.00054794,120]
[329995103,1718907045242,-551.47,0.00054794,120]
[329995104,1718907045252,-500.0,0.00054794,120]
[329995105,1718907045262,-500.0,0.00054794,120]
[329995106,1718907045271,-2908.95,0.00054794,120]
[329995107,1718907045281,-1350.09,0.00054794,120]
[329995108,1718907045291,-518.15210515,0.00054794,120]
[329995109,1718907045300,-500.0,0.00054794,120]
[329995110,1718907045310,-500.0,0.00054794,120]
[329995111,1718907045319,-500.0,0.00054794,120]
[329995112,1718907045329,-500.0,0.00054794,120]
[329995113,1718907045338,-500.0,0.00054794,120]
[329995114,1718907045347,-500.0,0.00054794,120]
[329995115,1718907045358,-500.0,0.00054794,120]
[329995116,1718907045367,-404.51188124,0.00054794,120]
[329995117,1718907045377,-216.29231075,0.00054794,120]
[329995118,1718907045386,-500.0,0.00054794,120]
[329995119,1718907045396,-504.86432741,0.00054794,120]
[329995120,1718907045410,-500.0,0.00054794,120]
[329995121,1718907045419,-500.0,0.00054794,120]
[329995122,1718907045429,-500.0,0.00054794,7]
[329995123,1718907045438,-169.65955374,0.00054794,120]
[329995124,1718907045447,-500.0,0.00054794,120]
[329995125,1718907045458,-500.0,0.00054794,120]
[329995126,1718907045468,-3598.74971058,0.00054887,120]
[329995127,1718907045477,-500.0,0.00054967,120]